fUSD/lending_fUSD_20251128
["ID","MTS","AMOUNT","RATE_DAILY","PERIOD"]
[395014036,1764329457578,-5039.0,0.00040282,2]
[395014037,1764329457587,-248.71395,0.00040288,30]
[395014038,1764329457596,-300.0,0.00040288,2]
[395014039,1764329457606,-697.31850553,0.00040295,60]
[395014040,1764329457616,-156.6753753,0.000403,2]
[395014041,1764329457625,-154.12,0.00040316,120]
[395014042,1764329457637,-150.15,0.00040316,120]
[395014043,1764329457647,-300.0,0.00040338,2]
[395014044,1764329457657,-155.81682927,0.00040341,7]
[395014045,1764329457667,-300.0,0.00040357,2]
[395014046,1764329457677,-150.0,0.00040359,7]
[395014047,1764329457687,-150.0,0.00040366,7]
[395014048,1764329457696,-300.0,0.00040374,2]
[395014049,1764329457704,-300.0,0.00040375,2]
[395014050,1764329457713,-300.0,0.00040378,2]
[395014051,1764329457723,-300.0,0.0004039,2]
[395014052,1764329457731,-150.0,0.00040393,120]
[395014053,1764329457740,-150.0,0.00040399,7]
[395014054,1764329457750,-300.0,0.00040401,2]
[395014055,1764329457760,-833.56,0.00040411,2]
[395014056,1764329457769,-500.0,0.00040411,30]
[395014057,1764329457779,-154.12,0.00040416,120]
[395014058,1764329457788,-150.15,0.00040416,120]
[395014059,1764329457796,-300.0,0.00040422,2]
[395014060,1764329457805,-300.0,0.00040427,2]
[395014061,1764329457814,-605.10153711,0.00040428,14]
[395014062,1764329457823,-1600.0,0.00040428,14]
[395014063,1764329457832,-500.0,0.00040428,14]
[395014064,1764329457840,-300.0,0.00040439,2]
[395014065,1764329457849,-300.0,0.00040454,2]
[395014066,1764329457858,-1000.0,0.00040463,7]
[395014067,1764329457867,-300.0,0.00040469,2]
[395014068,1764329457875,-300.0,0.00040471,2]
[395014069,1764329457885,-300.0,0.00040473,2]
[395014070,1764329457893,-300.0,0.00040479,2]
[395014071,1764329457902,-248.71395,0.00040488,30]
[395014072,1764329457911,-300.0,0.00040493,2]
[395014073,1764329457920,-300.0,0.00040497,2]
[395014074,1764329457929,-154.12,0.00040516,120]
[395014075,1764329457939,-150.15,0.00040516,120]
[395014076,1764329457948,-300.0,0.00040521,2]
[395014077,1764329457956,-300.0,0.00040528,2]
[395014078,1764329457965,-300.0,0.00040537,2]
[395014079,1764329457976,-150.0,0.00040542,7]
[395014080,1764329458058,-150.0,0.00040543,7]
[395014081,1764329458074,-300.0,0.00040543,2]
[395014082,1764329458083,-3575.79,0.00040547,2]
[395014083,1764329458092,-300.0,0.00040547,2]
[395014084,1764329458102,-774.85,0.00040547,2]
[395014085,1764329458111,-150.0,0.00040552,7]
[395014086,1764329458120,-300.0,0.00040586,2]
[395014087,1764329458129,-300.0,0.00040586,2]
[395014088,1764329458137,-150.0,0.0004059,7]
[395014089,1764329458146,-300.0,0.00040593,2]
[395014090,1764329458160,-300.0,0.00040596,2]
[395014091,1764329458169,-300.0,0.00040601,2]
[395014092,1764329458179,-150.0,0.00040608,7]
[395014093,1764329458188,-154.12,0.00040616,120]
[395014094,1764329458198,-150.15,0.00040616,120]
[395014095,1764329458208,-548.18,0.00040628,30]
[395014096,1764329458217,-300.0,0.00040631,2]
[395014097,1764329458226,-300.0,0.00040634,2]
[395014098,1764329458235,-300.0,0.00040638,2]
[395014099,1764329458244,-300.0,0.00040646,2]
[395014100,1764329458254,-300.0,0.00040648,2]
[395014101,1764329458262,-300.0,0.00040651,2]
[395014102,1764329458272,-998.53101914,0.00040658,120]
[395014103,1764329458281,-300.0,0.0004066,2]
[395014104,1764329458291,-300.0,0.00040668,2]
[395014105,1764329458300,-500.0,0.00040685,30]
[395014106,1764329458310,-150.0,0.00040686,7]
[395014107,1764329458319,-248.71395,0.00040688,30]
[395014108,1764329458328,-500.0,0.000407,120]
[395014109,1764329458338,-300.0,0.00040702,2]
[395014110,1764329458347,-300.0,0.00040705,2]
[395014111,1764329458356,-300.0,0.00040707,2]
[395014112,1764329458366,-300.0,0.00040714,2]
[395014113,1764329458376,-150.0,0.00040715,7]
[395014114,1764329458386,-154.2150396,0.00040716,120]
[395014115,1764329458396,-150.15,0.00040716,120]
[395014116,1764329458405,-300.0,0.00040753,2]
[395014117,1764329458415,-300.0,0.00040757,2]
[395014118,1764329458424,-150.0,0.00040758,7]
[395014119,1764329458434,-262.98609073,0.00040778,2]
[395014120,1764329458443,-500.0,0.00040797,30]
[395014121,1764329458453,-1400.0,0.00040797,30]
[395014122,1764329458463,-500.0,0.00040797,30]
[395014123,1764329458473,-537.6845,0.00040797,30]
[395014124,1764329458483,-151.0,0.00040797,30]
[395014125,1764329458493,-7407.141672,0.00040797,30]
[395014126,1764329458503,-445.202766,0.00040797,30]
[395014127,1764329458512,-500.0,0.00040797,30]
[395014128,1764329458522,-559.19188,0.00040797,30]
[395014129,1764329458531,-151.0,0.00040797,30]
[395014130,1764329458541,-500.0,0.00040797,30]
[395014131,1764329458550,-250.0,0.00040797,30]
[395014132,1764329458563,-250.0,0.00040797,30]
[395014133,1764329458572,-500.0,0.00040797,30]
[395014134,1764329458581,-200.0,0.00040797,30]
[395014135,1764329458591,-500.0,0.00040797,30]
[395014136,1764329458601,-207.4,0.00040797,30]
[395014137,1764329458611,-215.0738,0.00040797,30]
[395014138,1764329458620,-500.0,0.00040797,30]
[395014139,1764329458629,-223.0315306,0.00040797,30]
[395014140,1764329458641,-500.0,0.00040797,30]
[395014141,1764329458650,-231.28369723,0.00040797,30]
[395014142,1764329458660,-239.84119403,0.00040797,30]
[395014143,1764329458669,-250.0,0.00040797,30]
[395014144,1764329458679,-457.0,0.00040798,30]
[395014145,1764329458688,-300.0,0.00040802,2]
[395014146,1764329458698,-300.0,0.00040802,2]
[395014147,1764329458707,-300.0,0.00040806,2]
[395014148,1764329458717,-150.0,0.00040812,7]
[395014149,1764329458727,-150.15,0.00040816,120]
[395014150,1764329458736,-300.0,0.00040819,2]
[395014151,1764329458746,-199.0,0.00040821,16]
[395014152,1764329458755,-3575.79,0.00040821,2]
[395014153,1764329458764,-300.0,0.00040821,2]
[395014154,1764329458774,-774.85,0.00040821,2]
[395014155,1764329458783,-150.0,0.00040822,7]
[395014156,1764329458792,-300.0,0.00040827,2]
[395014157,1764329458801,-300.0,0.00040828,2]
[395014158,1764329458810,-300.0,0.0004084,2]
[395014159,1764329458819,-300.0,0.00040848,2]
[395014160,1764329458828,-150.0,0.00040856,7]
[395014161,1764329458838,-300.0,0.00040856,2]
[395014162,1764329458847,-300.0,0.00040856,2]
[395014163,1764329458856,-300.0,0.00040858,2]
[395014164,1764329458866,-300.0,0.00040858,2]
[395014165,1764329458875,-155.59491218,0.0004086,7]
[395014166,1764329458885,-1000.0,0.00040874,7]
[395014167,1764329458894,-1122.51185095,0.0004088,60]
[395014168,1764329458903,-300.0,0.00040884,2]
[395014169,1764329458912,-248.71395,0.00040888,30]
[395014170,1764329458921,-2623.49,0.00040893,120]
[395014171,1764329458930,-30000.0,0.00040895,120]
[395014172,1764329458939,-30000.0,0.00040897,120]
[395014173,1764329458948,-40000.0,0.00040899,120]
[395014174,1764329458958,-173.62435858,0.000409,28]
[395014175,1764329458967,-168.21077641,0.000409,28]
[395014176,1764329458976,-212.86052254,0.000409,28]
[395014177,1764329458985,-168.21077641,0.000409,28]
[395014178,1764329458995,-307.19930018,0.000409,2]
[395014179,1764329459004,-341.64085487,0.000409,15]
[395014180,1764329459013,-256.30201701,0.000409,30]
[395014181,1764329459023,-255.05973414,0.000409,120]
[395014182,1764329459031,-166.61414469,0.000409,2]
[395014183,1764329459040,-2875.2423448,0.000409,2]
[395014184,1764329459049,-156.6753753,0.000409,2]
[395014185,1764329459059,-150.0,0.00040905,7]
[395014186,1764329459068,-300.0,0.00040905,2]
[395014187,1764329459077,-150.15,0.00040916,120]
[395014188,1764329459086,-300.0,0.00040921,2]
[395014189,1764329459095,-207.36177663,0.00040925,120]
[395014190,1764329459105,-300.0,0.00040941,2]
[395014191,1764329459114,-300.0,0.00040943,2]
[395014192,1764329459123,-150.0,0.00040952,7]
[395014193,1764329459132,-300.0,0.00040958,2]
[395014194,1764329459141,-500.0,0.00040959,30]
[395014195,1764329459150,-1200.0,0.00040959,2]
[395014196,1764329459160,-1200.0,0.00040959,2]
[395014197,1764329459170,-1200.0,0.00040959,2]
[395014198,1764329459179,-233.78991028,0.00040959,2]
[395014199,1764329459189,-1200.0,0.00040959,2]
[395014200,1764329459199,-1200.0,0.00040959,2]
[395014201,1764329459208,-1200.0,0.00040959,2]
[395014202,1764329459218,-1200.0,0.00040959,2]
[395014203,1764329459227,-300.0,0.00040971,2]
[395014204,1764329459237,-300.0,0.00040977,2]
[395014205,1764329459246,-300.0,0.0004098,2]
[395014206,1764329459254,-446.61726206,0.00040987,7]
[395014207,1764329459263,-300.0,0.00040987,2]
[395014208,1764329459273,-246.81207678,0.0004099,7]
[395014209,1764329459282,-300.0,0.00040995,2]
[395014210,1764329459291,-500.0,0.00040999,31]
[395014211,1764329459301,-1400.0,0.00040999,31]
[395014212,1764329459310,-600.0,0.00040999,31]
[395014213,1764329459319,-500.0,0.00040999,31]
[395014214,1764329459410,-500.0,0.00040999,31]
[395014215,1764329459419,-151.0,0.00040999,31]
[395014216,1764329459428,-1400.0,0.00040999,41]
[395014217,1764329459437,-500.0,0.00040999,41]
[395014218,1764329459446,-500.0,0.00040999,41]
[395014219,1764329459455,-518.5,0.00040999,41]
[395014220,1764329459464,-151.0,0.00040999,41]
[395014221,1764329459474,-6888.0,0.00040999,31]
[395014222,1764329459483,-414.0,0.00040999,31]
[395014223,1764329459492,-500.0,0.00040999,31]
[395014224,1764329459502,-7142.856,0.00040999,41]
[395014225,1764329459511,-429.318,0.00040999,41]
[395014226,1764329459520,-500.0,0.00040999,41]
[395014227,1764329459529,-151.0,0.00040999,31]
[395014228,1764329459537,-151.0,0.00040999,31]
[395014229,1764329459546,-152.66321778,0.00040999,41]
[395014230,1764329459556,-159.81678127,0.00040999,41]
[395014231,1764329459569,-520.0,0.00040999,31]
[395014232,1764329459578,-539.24,0.00040999,41]
[395014233,1764329459587,-151.0,0.00040999,31]
[395014234,1764329459597,-500.0,0.00040999,31]
[395014235,1764329459607,-151.0,0.00040999,31]
[395014236,1764329459616,-250.0,0.00040999,31]
[395014237,1764329459625,-151.0,0.00040999,41]
[395014238,1764329459635,-500.0,0.00040999,41]
[395014239,1764329459644,-166.77833559,0.00040999,41]
[395014240,1764329459653,-250.0,0.00040999,41]
[395014241,1764329459662,-250.0,0.00040999,31]
[395014242,1764329459671,-500.0,0.00040999,31]
[395014243,1764329459681,-250.0,0.00040999,41]
[395014244,1764329459690,-500.0,0.00040999,41]
[395014245,1764329459699,-500.0,0.00040999,31]
[395014246,1764329459708,-500.0,0.00040999,41]
[395014247,1764329459718,-500.0,0.00040999,31]
[395014248,1764329459727,-500.0,0.00040999,31]
[395014249,1764329459736,-500.0,0.00040999,41]
[395014250,1764329459746,-500.0,0.00040999,41]
[395014251,1764329459755,-250.0,0.00040999,31]
[395014252,1764329459764,-250.0,0.00040999,41]
[395014253,1764329459773,-50000.0,0.00041,31]
[395014254,1764329459782,-50000.0,0.00041,41]
[395014255,1764329459791,-2385842.07412745,0.00041,2]
[395014256,1764329460233,-657.97278534,0.00041,2]
[395014257,1764329460250,-9035.13739471,0.00041,2]
[395014265,1764330632238,-150.0,0.00021,7]
[395014266,1764330632247,-1032.28714969,0.000229,2]
[395014267,1764330632299,-607.56498033,0.000229,2]
[395014268,1764330632309,-391.23086674,0.000229,2]
[395014269,1764330632321,-569.31587421,0.000229,2]
[395014270,1764330632333,-1100.7542825,0.000229,2]
[395014271,1764330632343,-328.3290225,0.000229,2]
[395014272,1764330632354,-408.2574532,0.000229,2]
[395014273,1764330632369,-323.3292545,0.000229,2]
[395014274,1764330632382,-476.85661962,0.000229,2]
[395014276,1764330632393,-1277.81018795,0.000229,2]
[395014278,1764330632401,-106.28963698,0.00023,44]
[395014293,1764330638050,-76.10399515,0.00023,44]
[395014294,1764330638059,-200.0,0.000231,2]
[395014295,1764330638068,-228.45325847,0.000231,2]
[395014296,1764330638078,-153.82948013,0.000231,3]
[395014297,1764330638087,-1200.0,0.00024655,2]
[395014298,1764330638098,-627.87869161,0.00024658,2]
[395014299,1764330638221,-375.12130839,0.00024658,2]
[395014300,1764330638232,-105.53869162,0.00024658,2]
[395014301,1764330638269,-898.46130838,0.00024658,2]
[395014302,1764330638279,-150.0,0.00025,2]
[395014303,1764330638288,-150.99,0.00026797,2]
[395014304,1764330638298,-4142.61,0.00026797,2]
[395014305,1764330638307,-1002.0,0.00027397,2]
[395014306,1764330638317,-150.99,0.00027884,2]
[395014307,1764330638327,-188.0,0.00028,2]
[395014308,1764330638336,-162.94935356,0.00029671,2]
[395014309,1764330638346,-543.36388483,0.00030137,2]
[395014310,1764330638361,-457.63611517,0.00030137,2]
[395014311,1764330638370,-1000.0,0.00032776,7]
[395014313,1764330638379,-1000.0,0.00033679,7]
[395014314,1764330638388,-44.11563704,0.00033899,6]
[395014318,1764330638541,-955.88436296,0.00033899,6]
[395014319,1764330638550,-43.96623704,0.00034485,39]
[395014320,1764330638562,-121.91676296,0.00034485,39]
[395014321,1764330638571,-878.59516704,0.00034485,7]
[395014322,1764330638582,-121.40483296,0.00034485,7]
[395014323,1764330638591,-384.84220821,0.00034581,7]
[395014335,1764330640203,-338.10682685,0.00034581,7]
[395014337,1764330640215,-277.05096494,0.00034581,7]
[395014339,1764330640224,-401.03181779,0.00034998,7]
[395014342,1764330640415,-598.96818221,0.00034998,7]
[395014343,1764330640425,-390.0,0.000351,2]
[395014344,1764330640434,-1000.0,0.00035484,7]
[395014345,1764330640443,-1000.0,0.00035614,7]
[395014346,1764330640453,-166.66,0.00035786,30]
[395014347,1764330640463,-1000.0,0.00036437,7]
[395014348,1764330640472,-166.66,0.00036539,30]
[395014349,1764330640481,-500.0,0.00036719,30]
[395014350,1764330640491,-500.0,0.00036719,30]
[395014351,1764330640500,-150.0,0.00036888,7]
[395014352,1764330640513,-150.37128175,0.00036888,7]
[395014353,1764330640523,-150.0,0.00036888,7]
[395014354,1764330640533,-150.0,0.00036888,7]
[395014355,1764330640543,-150.0,0.00036888,7]
[395014356,1764330640553,-1000.0,0.00036985,7]
[395014357,1764330640563,-155.99,0.0003705,2]
[395014358,1764330640572,-181.88734982,0.000372,120]
[395014359,1764330640582,-437.0423431,0.00037289,7]
[395014360,1764330640593,-523.34287504,0.00037289,7]
[395014361,1764330640605,-39.61478186,0.00037289,7]
[395014362,1764330640615,-166.66,0.00037293,30]
[395014363,1764330640624,-999.0,0.00037297,3]
[395014365,1764330640634,-145.77078744,0.00037319,30]
[395014367,1764330640645,-14.57921256,0.00037319,30]
[395014368,1764330640654,-150.0,0.00037571,7]
[395014369,1764330640664,-200.0,0.00037731,2]
[395014370,1764330640673,-506.81143776,0.00037857,30]
[395014371,1764330640682,-506.81143776,0.00037857,30]
[395014373,1764330640692,-500.0,0.00037857,30]
[395014375,1764330640701,-66.32437088,0.00037857,30]
[395014378,1764330640712,-433.67562912,0.00037857,30]
[395014380,1764330640722,-481.02163027,0.00038,30]
[395014439,1764330643254,-602.39836973,0.00038,30]
[395014440,1764330643263,-1.97967841,0.00038046,30]
[395014441,1764330643274,-164.68032159,0.00038046,30]
[395014442,1764330643283,-362.13267841,0.00038081,7]
[395014443,1764330643308,-490.0,0.00038081,7]
[395014444,1764330643319,-147.86732159,0.00038081,7]
[395014445,1764330643328,-150.0,0.00038254,7]
[395014446,1764330643337,-500.0,0.00038356,2]
[395014447,1764330643347,-277.92596841,0.00038356,2]
[395014448,1764330643358,-1807.95403159,0.00038356,2]
[395014449,1764330643367,-300.0,0.00038356,2]
[395014450,1764330643376,-150.0,0.00038356,5]
[395014451,1764330643386,-155.22509748,0.0003861,30]
[395014452,1764330643395,-1000.0,0.00038629,7]
[395014453,1764330643404,-500.0,0.0003863,2]
[395014454,1764330643412,-2085.88,0.0003863,2]
[395014455,1764330643421,-300.0,0.0003863,2]
[395014456,1764330643430,-166.66,0.00038799,30]
[395014457,1764330643439,-166.66,0.0003888,2]
[395014458,1764330643449,-500.0,0.00038904,2]
[395014459,1764330643458,-1386.42213787,0.00038904,2]
[395014460,1764330643573,-699.45786213,0.00038904,2]
[395014461,1764330643582,-300.0,0.00038904,2]
[395014462,1764330643704,-150.0,0.00038937,7]
[395014463,1764330643721,-150.0,0.00038937,7]
[395014464,1764330643731,-150.0,0.00038937,7]
[395014465,1764330643742,-1000.0,0.00039177,7]
[395014466,1764330643752,-500.0,0.00039178,2]
[395014467,1764330643762,-2085.88,0.00039178,2]
[395014468,1764330643771,-300.0,0.00039178,2]
[395014469,1764330643780,-1000.0,0.00039399,7]
[395014470,1764330643789,-500.0,0.00039452,2]
[395014471,1764330643798,-1668.83016987,0.00039452,2]
[395014472,1764330643810,-417.04983013,0.00039452,2]
[395014473,1764330643819,-300.0,0.00039452,2]
[395014474,1764330643829,-166.66,0.00039553,30]
[395014475,1764330643839,-551.8,0.00039589,2]
[395014476,1764330643848,-551.8,0.00039589,2]
[395014477,1764330643857,-551.8,0.00039589,2]
[395014478,1764330643866,-551.8,0.00039589,2]
[395014479,1764330643876,-551.8,0.00039589,2]
[395014480,1764330643885,-551.8,0.00039589,2]
[395014481,1764330643895,-388.28746987,0.00039589,2]
[395014486,1764330646523,-163.51253013,0.00039589,2]
[395014487,1764330646532,-551.8,0.00039589,2]
[395014488,1764330646542,-150.0,0.0003962,7]
[395014489,1764330646552,-1000.0,0.00039725,5]
[395014490,1764330646562,-500.0,0.00039726,2]
[395014491,1764330646571,-418.56010096,0.00039726,2]
[395014493,1764330646581,-250.0,0.00039726,5]
[395014495,1764330646591,-503.61076658,0.0003977,2]
[395014496,1764330646601,-1000.0,0.00039899,3]
[395014497,1764330646611,-1000.0,0.00039998,7]
[395014498,1764330646621,-1000.0,0.00039999,7]
[395014499,1764330646631,-4027.0,0.0004,5]
[395014500,1764330646640,-500.0,0.0004,2]
[395014501,1764330646650,-19680.5925505,0.0004,3]
[395014502,1764330646659,-300.281934,0.00040134,99]
[395014503,1764330646669,-166.66,0.00040163,2]
[395014504,1764330646678,-264.04866238,0.00040272,15]
[395014505,1764330646687,-500.0,0.00040272,31]
[395014506,1764330646697,-500.0,0.00040272,31]
[395014507,1764330646706,-500.0,0.00040272,31]
[395014508,1764330646715,-500.0,0.00040272,31]
[395014509,1764330646726,-500.0,0.00040272,31]
[395014510,1764330646735,-500.0,0.00040272,31]
[395014511,1764330646746,-500.0,0.00040272,31]
[395014512,1764330646755,-500.0,0.00040272,31]
[395014513,1764330646765,-500.0,0.00040272,31]
[395014514,1764330646775,-500.0,0.00040272,31]
[395014515,1764330646785,-500.0,0.00040272,31]
[395014516,1764330646795,-500.0,0.00040272,31]
[395014517,1764330646809,-500.0,0.00040272,31]
[395014518,1764330646819,-500.0,0.00040272,31]
[395014519,1764330646828,-500.0,0.00040272,31]
[395014520,1764330646838,-500.0,0.00040272,31]
[395014521,1764330646848,-500.0,0.00040272,31]
[395014522,1764330646858,-500.0,0.00040272,31]
[395014523,1764330646868,-500.0,0.00040272,31]
[395014524,1764330646877,-500.0,0.00040272,31]
[395014525,1764330646887,-500.0,0.00040272,31]
[395014526,1764330646896,-500.0,0.00040272,31]
[395014527,1764330646905,-500.0,0.00040272,31]
[395014528,1764330646918,-500.0,0.00040272,31]
[395014529,1764330646928,-500.0,0.00040272,31]
[395014530,1764330646937,-500.0,0.00040272,31]
[395014531,1764330646946,-500.0,0.00040272,31]
[395014532,1764330646955,-500.0,0.00040272,31]
[395014533,1764330646964,-500.0,0.00040272,31]
[395014534,1764330646973,-500.0,0.00040272,31]
[395014535,1764330646982,-183.47681307,0.00040272,31]
[395014536,1764330646991,-509.9049359,0.00040273,20]
[395014537,1764330647000,-500.0,0.00040273,2]
[395014538,1764330647014,-500.0,0.00040273,120]
[395014539,1764330647023,-500.0,0.00040273,20]
[395014540,1764330647032,-150.0,0.00040303,7]
[395014541,1764330647041,-551.8,0.00040411,2]
[395014542,1764330647050,-551.8,0.00040411,2]
[395014543,1764330647059,-551.8,0.00040411,2]
[395014544,1764330647068,-551.8,0.00040411,2]
[395014545,1764330647077,-551.8,0.00040411,2]
[395014546,1764330647086,-551.8,0.00040411,2]
[395014547,1764330647096,-551.8,0.00040411,2]
[395014548,1764330647105,-551.8,0.00040411,2]
[395014549,1764330647118,-551.8,0.00040411,2]
[395014550,1764330647127,-551.8,0.00040411,2]
[395014551,1764330647137,-551.8,0.00040411,2]
[395014552,1764330647147,-551.8,0.00040411,2]
[395014553,1764330647158,-1078.96,0.00040411,2]
[395014554,1764330647167,-1000.0,0.00040427,7]
[395014555,1764330647176,-1500.0,0.00040428,14]
[395014556,1764330647186,-500.0,0.00040428,14]
[395014557,1764330647195,-599.5549,0.00040447,2]
[395014558,1764330647207,-26456.6657,0.0004049,2]
[395014559,1764330647217,-500.0,0.00040499,30]
[395014560,1764330647226,-500.0,0.00040547,2]
[395014561,1764330647235,-500.0,0.00040547,120]
[395014562,1764330647245,-500.0,0.00040547,120]
[395014563,1764330647254,-17526.55930496,0.0004059,2]
[395014564,1764330647263,-25105.07348028,0.0004059,30]
[395014565,1764330647273,-500.0,0.00040797,30]
[395014566,1764330647282,-500.0,0.00040797,30]
[395014567,1764330647291,-861.52,0.000408,120]
[395014568,1764330647300,-1000.0,0.0004082,7]
[395014569,1764330647309,-500.0,0.00040821,2]
[395014570,1764330647320,-500.0,0.00040821,120]
[395014571,1764330647332,-500.0,0.00040821,120]
[395014572,1764330647341,-1000.0,0.00040879,7]
[395014573,1764330647351,-1000.0,0.0004088,2]
[395014574,1764330647360,-189.80047495,0.00040886,15]
[395014575,1764330647369,-151.51104912,0.00040886,28]
[395014576,1764330647378,-151.51104907,0.00040888,28]
[395014577,1764330647388,-284.78001896,0.0004089,30]
[395014578,1764330647400,-1000.0,0.0004089,120]
[395014579,1764330647410,-151.51104907,0.00040891,28]
[395014580,1764330647419,-151.51104907,0.00040893,28]
[395014581,1764330647428,-151.51104907,0.00040895,28]
[395014582,1764330647437,-151.51104907,0.00040898,28]
[395014583,1764330647447,-632.08482974,0.00040898,120]
[395014584,1764330647457,-1000.0,0.00040899,7]
[395014585,1764330647466,-1000.0,0.00040899,7]
[395014586,1764330647475,-189.80047494,0.000409,15]
[395014587,1764330647484,-151.51104907,0.000409,28]
[395014588,1764330647494,-334.43684184,0.000409,2]
[395014589,1764330647503,-5000.0,0.000409,120]
[395014590,1764330647512,-743.26905496,0.000409,2]
[395014591,1764330647521,-478.33925998,0.000409,2]
[395014592,1764330647530,-698.66,0.00040911,30]
[395014593,1764330647539,-162.30775821,0.00040923,2]
[395014594,1764330647549,-1000.0,0.00040924,7]
[395014595,1764330647558,-500.0,0.00040958,30]
[395014596,1764330647662,-333.73427857,0.00040958,30]
[395014597,1764330647683,-200.0,0.00040958,30]
[395014598,1764330647693,-207.4,0.00040958,30]
[395014599,1764330647703,-215.0738,0.00040958,30]
[395014600,1764330647713,-289.3115953,0.00040958,30]
[395014601,1764330647722,-500.0,0.00040958,30]
[395014602,1764330647731,-1000.0,0.00040958,7]
[395014603,1764330647741,-1200.0,0.00040959,2]
[395014604,1764330647751,-1200.0,0.00040959,2]
[395014605,1764330647760,-1200.0,0.00040959,2]
[395014606,1764330647769,-1200.0,0.00040959,2]
[395014607,1764330647779,-1200.0,0.00040959,2]
[395014608,1764330647788,-1200.0,0.00040959,2]
[395014609,1764330647797,-1200.0,0.00040959,2]
[395014610,1764330647806,-1200.0,0.00040959,2]
[395014611,1764330647815,-1200.0,0.00040959,2]
[395014612,1764330647824,-1200.0,0.00040959,2]
[395014613,1764330647834,-1200.0,0.00040959,2]
[395014614,1764330647844,-1200.0,0.00040959,2]
[395014615,1764330647853,-1200.0,0.00040959,2]
[395014616,1764330647862,-1200.0,0.00040959,2]
[395014617,1764330647871,-1200.0,0.00040959,2]
[395014618,1764330647880,-1200.0,0.00040959,2]
[395014619,1764330647890,-1200.0,0.00040959,2]
[395014620,1764330647899,-1200.0,0.00040959,2]
[395014621,1764330647908,-1200.0,0.00040959,2]
[395014622,1764330647917,-1200.0,0.00040959,2]
[395014623,1764330647926,-1200.0,0.00040959,2]
[395014624,1764330647936,-1200.0,0.00040959,2]
[395014625,1764330647954,-1200.0,0.00040959,2]
[395014626,1764330647965,-1200.0,0.00040959,2]
[395014627,1764330647975,-1200.0,0.00040959,2]
[395014628,1764330647984,-1200.0,0.00040959,2]
[395014629,1764330647994,-1200.0,0.00040959,2]
[395014630,1764330648003,-1200.0,0.00040959,2]
[395014631,1764330648013,-1200.0,0.00040959,2]
[395014632,1764330648022,-1200.0,0.00040959,2]
[395014633,1764330648032,-1200.0,0.00040959,2]
[395014634,1764330648042,-1200.0,0.00040959,2]
[395014635,1764330648051,-1058.22732073,0.00040959,2]
[395014636,1764330648060,-1200.0,0.00040959,2]
[395014637,1764330648070,-1200.0,0.00040959,2]
[395014638,1764330648080,-1200.0,0.00040959,2]
[395014639,1764330648090,-1200.0,0.00040959,2]
[395014640,1764330648099,-1200.0,0.00040959,2]
[395014641,1764330648110,-1200.0,0.00040959,2]
[395014642,1764330648120,-7662.55544061,0.0004097,4]
[395014643,1764330648130,-567.22796178,0.00040973,5]
[395014644,1764330648139,-500.0,0.00040973,5]
[395014645,1764330648148,-500.0,0.00040973,5]
[395014646,1764330648157,-1094.65077723,0.00040979,4]
[395014647,1764330648166,-5473.25388615,0.0004098,4]
[395014648,1764330648175,-500.0,0.0004098,30]